bitfinex/quotes_ETHUSD_20230703
["timestamp","ask_amount","ask_price","bid_price","bid_amount"]
[1688404859039,11.454563,1964.3,1963.8,10.18411]
[1688404859040,13.999993,1964.3,1963.8,10.18411]
[1688404859650,18.36978116,1964.3,1963.7,0.4170377]
[1688404859821,18.36978116,1964.3,1963.7,5.09242]
[1688404860026,16.55878116,1964.3,1963.7,10.18484]
[1688404860227,16.55878116,1964.3,1963.7,5.09242]
[1688404860717,4.21466628,1964.2,1963.6,0.40109657]
[1688404860913,14.53997,1964.1,1963.3,2.67574435]
[1688404861155,19.68025816,1964.1,1963.5,10.18572]
[1688404861318,17.86925816,1964.1,1963.5,10.18572]
[1688404862665,17.86925816,1964.1,1963.5,12.74856186]
[1688404862809,17.86925816,1964.1,1963.5,14.05019202]
[1688404865489,12.73007,1963.9,1963.4,10.18611]
[1688404865643,12.73007,1963.9,1963.5,5.09294]
[1688404865644,15.28885816,1963.9,1963.5,5.09294]
[1688404865839,15.28885816,1963.9,1963.5,10.18588]
[1688404866457,12.74284816,1963.9,1963.5,12.73235]
[1688404866659,12.74284816,1963.9,1963.5,10.18588]
[1688404866884,15.28879816,1963.9,1963.5,5.09294]
[1688404867740,18.88326298,1963.9,1963.5,5.09294]
[1688404869190,2.55878816,1963.9,1963.5,10.45361971]
[1688404869346,2.55878816,1963.9,1963.5,5.09294]
[1688404869347,10.18444,1963.8,1963.5,5.09294]
[1688404870805,12.73052,1963.8,1963.5,5.09294]
[1688404871593,2.55878816,1963.7,1963.3,0.40143742]
[1688404871760,10.18546,1963.6,1963.3,8.09336]
[1688404872163,5.09273,1963.6,1963.3,15.73355]
[1688404872371,7.65132816,1963.7,1963.3,15.73355]
[1688404874372,5.09201,1963.9,1963.3,15.73355]
[1688404874575,7.65079816,1963.9,1963.4,1.573355]
[1688404874911,5.09217,1963.8,1963.5,10.18562]
[1688404876104,5.09217,1963.8,1963.3,5.81446971]
[1688404876105,2.55878816,1963.6,1963.2,0.41516746]
[1688404876307,12.74924155,1963.5,1962.9,5.09437]
[1688404876451,2.55878816,1963.4,1962.8,5.56818642]
[1688404876779,12.99004882,1963.3,1962.8,0.47358642]
[1688404876984,10.18806,1963.1,1962.8,5.56833642]
[1688404878175,10.18806,1963.1,1962.8,0.47358642]
[1688404878789,12.73505,1963.1,1962.8,0.47358642]
[1688404879213,4.35178816,1963.0,1962.8,0.47358642]
[1688404879512,13.17142882,1962.9,1962.8,0.47358642]
[1688404880359,15.73021698,1962.9,1962.8,0.47358642]
[1688404882868,21.09521698,1962.9,1962.8,0.47358642]
[1688404883068,18.78721698,1962.9,1962.8,0.47358642]
[1688404886719,24.65221698,1962.9,1962.8,0.47358642]
[1688404886888,28.14421698,1962.9,1962.8,0.47358642]
[1688404888698,28.17080415,1962.9,1962.8,6.42e-06]
[1688404889744,27.69080415,1962.9,1962.8,6.42e-06]
[1688404892248,28.17080415,1962.9,1962.8,6.42e-06]
[1688404893652,12.76283717,1962.9,1962.8,6.42e-06]
[1688404893803,5.12108717,1962.9,1962.8,6.42e-06]
[1688404893998,12.73625,1962.9,1962.8,6.42e-06]
[1688404894198,12.75856702,1962.9,1962.8,6.42e-06]
[1688404894537,15.31735518,1962.9,1962.8,6.42e-06]
[1688404894697,22.4688067,1962.9,1962.8,6.42e-06]
[1688404897140,4.3675567,1962.9,1962.8,6.42e-06]
[1688404897312,7.67560518,1962.9,1962.8,6.42e-06]
[1688404897512,12.77010518,1962.9,1962.8,6.42e-06]
[1688404900112,7.67560518,1962.9,1962.8,6.42e-06]
[1688404900314,12.77010518,1962.9,1962.8,6.42e-06]
[1688404902871,15.31735518,1962.9,1962.8,6.42e-06]
[1688404903071,16.8490907,1962.9,1962.8,6.42e-06]
[1688404903433,2.58110518,1962.9,1962.8,10.18952642]
[1688404903751,2.55878816,1962.9,1962.8,10.18952642]
[1688404904061,2.58110518,1962.9,1962.8,5.09476642]
[1688404906688,0.02231702,1962.9,1962.8,14.54590642]
[1688404906974,10.21002702,1963.2,1962.8,14.54590642]
[1688404907154,2.55878816,1963.1,1962.8,14.54590642]
[1688404907967,0.01404962,1963.0,1962.8,14.54590642]
[1688404908373,0.01404962,1963.0,1962.9,0.01637686]
[1688404908549,2.5252,1963.3,1962.9,12.75262686]
[1688404908749,2.55878816,1963.2,1962.9,12.75262686]
[1688404912386,2.7557,1963.5,1962.9,12.75262686]
[1688404912594,2.55878816,1963.5,1963.2,12.7343]
[1688404912744,10.31112223,1963.9,1963.2,14.442916]
[1688404912745,7.84367,1963.8,1963.2,14.442916]
[1688404912941,2.55878816,1963.7,1963.2,14.442916]
[1688404913357,5.09175,1964.0,1963.2,14.442916]
[1688404913561,2.55878816,1963.9,1963.7,10.1848]
[1688404914287,2.55878816,1963.9,1963.7,12.73101]
[1688404914847,7.65079816,1963.9,1963.7,10.1848]
[1688404916271,7.65079816,1963.9,1963.7,5.0924]
[1688404916812,12.74280816,1963.9,1963.7,5.0924]
[1688404917677,2.55878816,1963.9,1963.7,10.18482]
[1688404917877,5.09865,1964.1,1963.7,15.812144]
[1688404917878,2.5529,1964.1,1963.7,15.812144]
[1688404918068,10.20309816,1964.1,1963.7,15.812144]
[1688404918567,5.11168816,1964.1,1963.7,15.812144]
[1688404919011,2.0582,1964.4,1963.7,14.004144]
[1688404919303,2.55878816,1964.3,1964.0,12.72897]
[1688404919895,7.64972816,1964.3,1964.0,10.18318]
[1688404920064,7.64972816,1964.3,1964.0,5.09159]
[1688404920065,15.28609816,1964.3,1964.0,5.09159]
[1688404920403,12.74066816,1964.3,1964.0,10.18323]
[1688404923961,12.74066816,1964.3,1963.9,5.09179]
[1688404923962,15.28609816,1964.3,1963.9,5.09179]
[1688404924168,5.09139,1964.1,1963.9,5.09174]
[1688404924491,2.55878816,1964.0,1963.9,5.09174]
[1688404925422,2.55878816,1964.0,1963.9,10.18364]
[1688404927474,2.55878816,1964.0,1963.9,12.72959]
[1688404928396,2.0951,1964.4,1963.9,15.81391753]
[1688404928743,2.55878816,1964.4,1963.9,15.81391753]
[1688404929792,9.8447,1964.7,1963.9,15.81391753]
[1688404929992,2.55878816,1964.6,1963.9,15.81391753]
[1688404930187,2.55878816,1964.6,1964.2,7.6365]
[1688404930409,2.55878816,1964.6,1964.2,12.7275]
[1688404930830,7.64889816,1964.6,1964.2,12.7275]
[1688404932141,5.09011,1964.6,1964.2,12.7275]
[1688404932344,9.8447,1964.7,1964.3,1.808]
[1688404932345,4.7547,1964.7,1964.3,1.808]
[1688404932508,2.55878816,1964.7,1964.4,12.7264]
[1688404933110,0.1,1964.9,1964.4,12.7264]
[1688404933316,2.65878816,1964.9,1964.5,1.808]
[1688404933511,0.1,1964.9,1964.6,12.72512]
[1688404933809,0.1,1964.9,1964.7,1.272512]
[1688404934148,0.1,1964.9,1964.8,5.08957]
[1688404934503,5.18931,1964.9,1964.7,5.08966]
[1688404936000,2.55878816,1964.8,1964.7,10.17949]
[1688404936207,7.64835816,1964.8,1964.6,5.08997]
[1688404938207,12.73792816,1964.8,1964.5,10.18044]
[1688404938411,1.27379282,1964.7,1964.4,5.09051]
[1688404938617,2.55878816,1964.6,1964.4,10.18112]
[1688404939018,7.64887816,1964.6,1964.4,10.18112]
[1688404939224,2.55878816,1964.6,1964.4,10.18112]
[1688404939645,7.64892816,1964.6,1964.4,5.09051]
[1688404939850,7.64900816,1964.6,1964.4,5.09051]
[1688404940107,12.73922816,1964.6,1964.3,10.1817]
[1688404940307,12.73922816,1964.6,1964.3,5.09085]
[1688404941033,12.73922816,1964.6,1964.3,10.18172]
[1688404941231,14.39502526,1964.6,1964.2,2.54555]
[1688404941548,16.94006526,1964.6,1964.2,5.09102]
[1688404941766,14.39502526,1964.6,1964.2,5.09102]
[1688404942388,16.94006526,1964.6,1964.2,5.09102]
[1688404942553,14.39502526,1964.6,1964.2,10.18215]
[1688404942752,14.39502526,1964.6,1964.2,12.72771]
[1688404942948,1.43950253,1964.5,1964.2,10.18215]
[1688404943153,2.55878816,1964.4,1964.2,10.18215]
[1688404944133,2.55878816,1964.4,1964.2,12.72771]
[1688404944377,2.55878816,1964.4,1964.2,10.18215]
[1688404944676,7.64945816,1964.4,1964.2,10.18215]
[1688404945178,7.64945816,1964.4,1964.2,5.09102]
[1688404945977,7.64945816,1964.4,1964.2,10.18215]
[1688404947502,3.2987,1964.7,1964.3,0.0163652]
[1688404947503,2.0077,1964.7,1964.3,0.0163652]
[1688404947786,2.55878816,1964.6,1964.4,10.18112]
[1688404949037,7.64890816,1964.6,1964.4,10.18112]
[1688404949791,2.55878816,1964.6,1964.4,10.18112]
[1688404951186,2.55878816,1964.6,1964.4,12.72642]
[1688404955487,2.55878816,1964.6,1964.3,0.0163652]
[1688404955488,16.04895198,1964.6,1964.3,5.09081]
[1688404955687,15.28407816,1964.6,1964.3,5.09081]
[1688404955887,15.28407816,1964.6,1964.0,5.09147]
[1688404956095,15.28407816,1964.6,1964.1,5.09136]
[1688404956260,17.27747816,1964.6,1964.1,10.18275]
[1688404956455,5.09066,1964.4,1964.1,10.18275]
[1688404956758,7.64944816,1964.4,1964.1,10.18275]
[1688404956959,10.20814816,1964.4,1964.1,10.18275]
[1688404957859,15.29880816,1964.4,1964.1,10.18275]
[1688404958805,10.20814816,1964.4,1964.1,10.18275]
[1688404959809,10.20814816,1964.4,1964.1,12.72844]
[1688404962003,15.29880816,1964.4,1964.1,12.72844]
[1688404962209,17.00146376,1964.4,1964.1,12.72844]
[1688404962375,2.55878816,1964.3,1963.9,5.09177]
[1688404962575,10.18236,1964.2,1963.9,5.09178]
[1688404962804,12.74114816,1964.2,1963.9,10.18368]
[1688404963306,12.74114816,1964.2,1963.9,5.09178]
[1688404963711,12.7363826,1964.2,1963.9,5.09178]
[1688404964161,12.7363826,1964.2,1963.9,10.18368]
[1688404964366,2.55878816,1964.1,1963.6,10.71926233]
[1688404964566,7.65022816,1964.1,1963.6,12.73158]
[1688404964803,15.28741816,1964.1,1963.6,12.73158]
[1688404965006,12.74172816,1964.1,1963.6,12.73158]
[1688404965171,12.74172816,1964.1,1963.7,1.273158]
[1688404965371,12.74172816,1964.1,1963.8,10.18422]
[1688404965875,5.5513556,1964.4,1964.0,12.72897]
[1688404965876,7.64945,1964.4,1964.0,12.72897]
[1688404966059,12.74062816,1964.3,1964.0,5.09159]
[1688404966262,16.81599098,1964.3,1963.9,10.19986853]
[1688404967108,25.23799098,1964.3,1963.9,5.09175]
[1688404967318,26.53499098,1964.3,1963.8,5.09205]
[1688404967609,12.72874,1964.1,1963.8,5.09215]
[1688404967830,7.65053816,1964.0,1963.8,10.18431]
[1688404967962,12.74228816,1964.0,1963.8,5.09215]
[1688404968165,12.74228816,1964.0,1963.7,5.09223]
[1688404968398,10.33963816,1964.0,1963.8,5.09215]
[1688404968868,10.33963816,1964.0,1963.8,10.18431]
[1688404969189,10.33963816,1964.0,1963.8,5.09215]
[1688404969396,15.43138816,1964.0,1963.8,5.09215]
[1688404969695,10.33963816,1964.0,1963.8,10.18431]
[1688404970707,5.24788816,1964.0,1963.8,10.18431]
[1688404970912,5.24788816,1964.0,1963.8,12.73039]
[1688404971221,15.88220282,1964.3,1963.8,14.01979836]
[1688404971222,2.0878,1964.3,1963.8,14.01979836]
[1688404971367,7.65036,1964.4,1963.8,14.01979836]
[1688404971567,2.55878816,1964.4,1963.8,14.01979836]
[1688404971815,2.55878816,1964.4,1963.9,1.40197984]
[1688404972114,2.55878816,1964.4,1964.0,15.29092769]
[1688404972415,2.55878816,1964.4,1964.1,1.297]
[1688404972727,2.55878816,1964.4,1964.2,12.72782]
[1688404975113,0.1,1964.9,1964.3,1.297]
[1688404975278,0.1,1964.9,1964.4,14.01]
[1688404975279,5.13238816,1964.8,1964.4,14.01]
[1688404975629,10.22208816,1964.8,1964.4,14.01]
[1688404976105,10.22208816,1964.8,1964.4,12.726]
[1688404976779,15.31178816,1964.8,1964.4,12.726]
[1688404978482,17.32092398,1964.8,1964.4,10.1808]
[1688404978687,19.86570398,1964.8,1964.4,10.1808]
[1688404979717,19.86570398,1964.8,1964.4,5.0904]
[1688404984594,19.86570398,1964.8,1964.3,10.18151]
[1688404984927,10.18028,1964.6,1964.3,5.09075]
[1688404985135,2.55878816,1964.5,1964.3,10.18162]
[1688404990504,2.55878816,1964.5,1964.3,12.72705]
[1688404991322,16.33435582,1964.8,1964.3,12.72705]
[1688404991323,7.66322,1964.8,1964.3,12.72705]
[1688404991609,2.55878816,1964.7,1964.3,14.02305]
[1688404991843,2.55878816,1964.7,1964.4,1.402305]
[1688404992116,2.55878816,1964.7,1964.5,12.67587]
[1688404997824,2.55878816,1964.7,1964.5,10.1807]
[1688404998171,7.64866816,1964.7,1964.5,5.09035]
[1688404998311,0.76486682,1964.6,1964.5,5.09035]
[1688404998511,3.32365498,1964.6,1964.5,5.09035]
[1688404998711,3.32365498,1964.6,1964.5,10.1807]
[1688405000565,3.32365498,1964.6,1964.5,5.09035]
[1688405000779,8.41374498,1964.6,1964.1,2.95781148]
[1688405000946,3.40016266,1964.5,1964.1,2.54566]
[1688405001276,3.40016266,1964.5,1964.3,10.18142]
[1688405001277,8.49055266,1964.5,1964.3,10.18142]
[1688405001498,2.6154,1964.4,1964.3,5.09071]
[1688405001644,10.26479816,1964.4,1964.3,5.09071]
[1688405001968,11.88445443,1964.4,1964.2,10.18199]
[1688405002175,2.55878816,1964.3,1964.2,10.18199]
[1688405002671,2.55878816,1964.3,1964.2,12.72755]
[1688405005879,2.55878816,1964.3,1964.2,10.18199]
[1688405009054,2.55878816,1964.3,1964.2,12.72755]
[1688405021602,2.55878816,1964.3,1964.2,10.18199]
[1688405024813,2.6154,1964.4,1964.2,12.72755]
[1688405025022,2.55878816,1964.4,1964.2,12.72755]
[1688405026196,3.32370798,1964.4,1964.2,12.72755]
[1688405029131,3.32370798,1964.4,1964.2,10.18199]
[1688405034082,2.55878816,1964.4,1964.2,12.72755]
[1688405057536,2.6715,1964.6,1964.2,14.02355]
[1688405057983,2.6715,1964.6,1964.4,12.72652]
[1688405060499,2.6715,1964.6,1964.4,10.18122]
[1688405062400,10.17993,1964.7,1964.4,10.18122]
[1688405062557,12.73871816,1964.7,1964.4,10.18122]
[1688405069220,7.64874816,1964.7,1964.4,10.18122]
[1688405072360,7.64874816,1964.7,1964.2,5.09089]
[1688405072361,5.0904,1964.5,1964.2,5.09089]
[1688405072561,5.0904,1964.5,1964.2,10.18202]
[1688405072562,7.64949816,1964.4,1964.2,10.18202]
[1688405075765,2.55878816,1964.4,1964.2,10.18202]
[1688405076647,7.64940816,1964.4,1964.2,10.18202]
[1688405077660,2.55878816,1964.4,1963.9,3.56538199]
[1688405077984,2.55878816,1964.4,1964.2,10.18215]
[1688405078483,7.64939816,1964.4,1964.2,10.13215]
[1688405080785,7.64939816,1964.4,1964.2,5.04102]
[1688405081103,16.58230816,1964.4,1963.9,5.09174]
[1688405081391,17.32060816,1964.4,1963.9,10.18352]
[1688405081562,17.32060816,1964.4,1963.9,10.18364]
[1688405081563,10.18236,1964.2,1963.9,10.18364]
[1688405081752,12.74114816,1964.2,1963.9,10.18364]
[1688405081947,12.74114816,1964.2,1963.7,0.53402233]
[1688405081948,2.55878816,1964.1,1963.7,0.53402233]
[1688405082151,5.09167,1964.0,1963.7,10.18459]
[1688405082489,5.09167,1964.0,1963.6,6.95371755]
[1688405082490,15.52642816,1964.0,1963.6,6.95371755]
[1688405082656,15.52642816,1964.0,1963.7,5.0924]
[1688405082852,16.92697855,1964.0,1963.7,5.0924]
[1688405083057,16.92697855,1964.0,1963.7,10.18482]
[1688405083999,11.83530855,1964.0,1963.7,12.73103]
[1688405085469,10.43475816,1964.0,1963.7,12.73103]
[1688405085985,5.34308816,1964.0,1963.7,12.73103]
[1688405086511,10.43475816,1964.0,1963.7,12.73103]
[1688405099659,5.34308816,1964.0,1963.7,12.73103]
[1688405103838,8.422,1964.5,1963.7,12.73103]
[1688405103839,7.07289682,1964.7,1963.9,1.294]
[1688405104044,5.15718816,1964.6,1963.8,6.05002233]
[1688405104355,5.15718816,1964.6,1964.0,15.27462]
[1688405105439,5.15718816,1964.6,1964.3,12.72705]
[1688405105971,2.55878816,1964.6,1964.3,12.72705]
[1688405106167,2.55878816,1964.6,1964.3,14.383703]
[1688405113311,2.55878816,1964.6,1964.4,1.297]
[1688405113525,2.55878816,1964.6,1964.5,12.72587]
[1688405143596,12.73896816,1964.6,1964.3,5.09076]
[1688405143937,1.297,1964.5,1964.3,5.09076]
[1688405144140,2.55878816,1964.4,1964.3,5.09076]
[1688405144439,3.45341198,1964.4,1964.3,5.04076]
[1688405147441,3.45341198,1964.4,1964.3,10.13163]
[1688405148354,2.55878816,1964.4,1964.3,12.67706]
[1688405165737,2.5269,1964.5,1964.3,12.67706]
[1688405166018,0.1,1964.9,1964.3,12.67706]
[1688405166227,5.32198816,1964.8,1964.3,14.00402037]
[1688405169532,5.32198816,1964.8,1964.3,14.02038557]
[1688405169730,5.32198816,1964.8,1964.3,17.25770236]
[1688405170517,5.32198816,1964.8,1964.5,15.2709]
[1688405171292,2.55878816,1964.8,1964.5,15.2709]
[1688405172305,0.1,1964.9,1964.5,16.5569]
[1688405172530,2.65878816,1964.9,1964.6,0.01636269]
[1688405172728,2.65878816,1964.9,1964.7,15.26948]
[1688405173038,0.1,1964.9,1964.7,20.35931]
[1688405173442,0.1,1964.9,1964.7,21.65631]
[1688405174260,0.1,1964.9,1964.8,1.284]
[1688405174427,0.1,1964.9,1964.8,16.172251]
[1688405176653,0.1,1964.9,1964.8,16.18861202]
[1688405180683,0.1,1964.9,1964.8,12.72392]
[1688405180879,0.1,1964.9,1964.8,12.73177101]
[1688405181031,0.1,1964.9,1964.8,12.72392]
[1688405221278,0.1,1964.9,1964.8,12.74028102]
[1688405233373,2.65878816,1964.9,1964.8,12.72392]
[1688405233615,2.92466698,1964.9,1964.8,10.17914]
[1688405233771,2.92466698,1964.9,1964.4,0.53402233]
[1688405233990,2.92466698,1964.9,1964.6,2.54501]
[1688405233991,7.17748816,1964.8,1964.6,2.54501]
[1688405234221,7.17748816,1964.8,1964.7,5.08983]
[1688405234401,7.17748816,1964.8,1964.7,10.17966]
[1688405234605,7.93182486,1964.8,1964.4,0.53402233]
[1688405234802,7.93182486,1964.8,1964.5,5.09021]
[1688405235005,7.93182486,1964.8,1964.5,12.72569]
[1688405242260,7.17748816,1964.8,1964.5,12.72569]
[1688405243257,4.6187,1964.8,1964.5,12.72569]
[1688405243467,0.1,1964.9,1964.6,1.294]
[1688405243646,0.1,1964.9,1964.7,20.35931]
[1688405243950,0.1,1964.9,1964.7,21.65631]
[1688405244109,0.1,1964.9,1964.8,2.165631]
[1688405244309,0.1,1964.9,1964.8,14.889551]
[1688405245365,0.57103745,1965.2,1964.9,5.365]
[1688405245521,0.57103745,1965.2,1965.1,1.297]
[1688405245855,0.57103745,1965.2,1965.1,26.01422668]
[1688405246056,2.792,1965.8,1965.1,31.09229926]
[1688405246349,2.792,1965.8,1965.3,20.35229]
[1688405246561,2.792,1965.8,1965.6,15.2625]
[1688405246916,2.792,1965.8,1965.6,12.71875]
[1688405248848,0.1,1965.9,1965.7,0.01635354]
[1688405249048,0.1,1965.9,1965.8,20.34792]
[1688405249963,0.1,1965.9,1965.8,20.82792]
[1688405250330,0.1,1966.1,1965.9,0.01635188]
[1688405250535,0.1,1966.1,1966.0,16.55338]
[1688405255378,0.1,1966.1,1966.0,17.03338]
[1688405255584,0.1,1966.1,1966.0,18.32314819]
[1688405261479,2.1576,1966.6,1966.0,18.32314819]
[1688405261480,0.32911087,1967.0,1966.1,5.365]
[1688405261710,1.38591638,1967.1,1966.2,38.91823816]
[1688405261711,0.1,1966.9,1966.2,38.91823816]
[1688405262013,0.1,1966.9,1966.4,5.365]
[1688405262213,0.1,1966.9,1966.5,31.02343986]
[1688405262509,0.1,1966.9,1966.7,20.37130986]
[1688405262723,0.1,1966.9,1966.7,21.66830986]
[1688405263378,2.65878816,1966.8,1966.7,15.28665986]
[1688405263758,2.65878816,1966.8,1966.7,12.74433986]
[1688405263995,2.65878816,1966.8,1966.7,5.11736986]
[1688405264209,2.65878816,1966.8,1966.6,5.08474]
[1688405264210,8.01906698,1966.8,1966.6,5.08474]
[1688405264514,2.55878816,1966.7,1966.6,10.16965]
[1688405265108,2.55878816,1966.7,1966.6,5.08474]
[1688405265296,7.64343816,1966.7,1966.5,5.08501]
[1688405265603,2.55878816,1966.7,1966.6,5.08491]
[1688405265807,8.95381886,1966.7,1966.4,5.08522]
[1688405265991,8.95381886,1966.7,1966.4,10.17065]
[1688405266311,8.95391886,1966.7,1966.4,12.71336]
[1688405266467,6.58986886,1966.7,1966.4,12.71336]
[1688405267366,16.75920886,1966.7,1966.4,10.17065]
[1688405267571,1.67592089,1966.6,1966.4,10.17065]
[1688405267782,2.55878816,1966.5,1966.4,10.17065]
[1688405268384,1.67592089,1966.6,1966.4,12.71336]
[1688405268590,2.55878816,1966.6,1966.4,12.66336]
[1688405268812,2.55878816,1966.5,1966.4,12.66336]
[1688405269017,10.17086,1966.4,1966.2,10.17167]
[1688405269219,5.08532,1966.5,1966.3,10.17138]
[1688405269378,0.508532,1966.4,1966.3,10.17138]
[1688405269574,5.593962,1966.4,1966.2,5.08584]
[1688405269804,5.593962,1966.4,1966.1,10.17204]
[1688405269805,7.64451816,1966.3,1966.1,10.17204]
[1688405270221,7.64451816,1966.3,1965.9,2.55970188]
[1688405270389,2.55878816,1966.3,1966.1,12.71552]
[1688405272477,2.7405,1966.4,1966.1,12.71552]
[1688405276072,2.7405,1966.4,1966.1,14.241393]
[1688405276353,2.7405,1966.4,1966.3,12.71422]
[1688405283243,2.7405,1966.4,1966.3,17.79991]
[1688405283447,0.1,1966.8,1966.3,17.81625855]
[1688405283660,2.5648,1966.6,1966.3,17.81625855]
[1688405283897,2.5648,1966.6,1966.5,12.71292]
[1688405288112,2.5648,1966.6,1966.5,10.17034]
[1688405289089,17.83585816,1966.6,1966.2,10.17163]
[1688405289397,2.55878816,1966.5,1966.2,10.17161]
[1688405289710,5.08543,1966.4,1966.2,5.08576]
[1688405289998,7.64421816,1966.4,1966.2,5.08576]
[1688405290197,14.00259998,1966.4,1966.2,5.08593]
[1688405290399,10.172,1966.2,1965.9,5.0866]
[1688405290622,12.73078816,1966.2,1965.9,10.17332]
[1688405291409,15.36468816,1966.2,1965.9,10.17332]
[1688405293892,10.27868816,1966.2,1965.9,10.17332]
[1688405294788,10.27868816,1966.2,1965.9,12.71668]
[1688405295322,10.27868816,1966.2,1965.9,10.17332]
[1688405296487,10.27868816,1966.2,1965.9,12.71668]
[1688405297210,5.19268816,1966.2,1965.9,12.71668]
[1688405297373,5.19268816,1966.2,1965.9,13.988348]
[1688405297709,5.19268816,1966.2,1965.9,14.00469988]
[1688405297905,2.6339,1966.2,1965.9,14.00469988]
[1688405298163,2.6339,1966.2,1965.9,15.30169988]
[1688405299270,0.1,1966.8,1965.9,25.25948804]
[1688405299562,0.1,1966.8,1966.4,5.89562053]
[1688405299761,0.1,1966.8,1966.5,3.48]
[1688405300061,0.1,1966.8,1966.6,20.33963]
[1688405300757,0.1,1966.8,1966.6,22.37363]
[1688405300960,0.1,1966.8,1966.6,22.64136971]
[1688405301171,0.1,1966.8,1966.7,14.97575697]
[1688405301468,0.1,1966.8,1966.7,12.71162]
[1688405304367,0.1,1966.8,1966.7,14.00362]
[1688405304520,0.1,1966.8,1966.7,12.71162]
[1688405304715,0.1,1966.8,1966.7,14.00862]
[1688405305065,0.1,1966.8,1966.7,16.172218]
[1688405305878,0.1,1966.9,1966.7,18.686218]
[1688405306031,0.1,1966.9,1966.8,14.008]
[1688405307034,0.1,1966.9,1966.8,16.042]
[1688405311585,0.09291638,1967.1,1966.9,0.01634356]
[1688405311876,0.09291638,1967.1,1967.0,21.63152]
[1688405312237,0.09291638,1967.1,1967.0,22.11152]
[1688405316179,0.09291638,1967.1,1967.0,20.33552]
[1688405316576,0.09291638,1967.1,1967.0,15.25164]
[1688405324430,0.09291638,1967.1,1967.0,15.65806915]
[1688405324736,0.09291638,1967.1,1967.0,17.58691386]
[1688405341243,0.09291638,1967.1,1967.0,20.58691386]
[1688405344434,0.09291638,1967.1,1967.0,18.65806915]
[1688405353151,0.09291638,1967.1,1967.0,18.25164]
[1688405355162,0.09291638,1967.1,1967.0,18.24929473]
[1688405383072,0.09291638,1967.1,1967.0,19.5742206]
[1688405383449,6.38e-06,1967.1,1967.0,19.5742206]
[1688405383641,6.38e-06,1967.1,1967.0,23.15077071]
[1688405387482,6.38e-06,1967.1,1967.0,23.15074986]
[1688405388940,6.38e-06,1967.1,1967.0,23.63074986]
[1688405389554,6.38e-06,1967.1,1967.0,22.30584484]
[1688405389979,6.38e-06,1967.1,1967.0,23.63070104]
[1688405393420,6.38e-06,1967.1,1967.0,22.30584484]
[1688405396321,6.38e-06,1967.1,1967.0,21.82584484]
[1688405397022,6.38e-06,1967.1,1967.0,25.19446218]
[1688405397211,6.38e-06,1967.1,1967.0,28.73156218]
[1688405397576,6.38e-06,1967.1,1967.0,28.46382247]
[1688405400518,6.38e-06,1967.1,1967.0,27.16782247]
[1688405400690,6.38e-06,1967.1,1967.0,28.73256218]
[1688405402385,6.38e-06,1967.1,1967.0,27.43556218]
[1688405402582,6.38e-06,1967.1,1967.0,25.18472904]
[1688405402798,6.38e-06,1967.1,1967.0,21.82584484]
[1688405403131,6.38e-06,1967.1,1967.0,23.15072416]
[1688405404820,6.38e-06,1967.1,1967.0,15.24929473]
[1688405407008,6.38e-06,1967.1,1967.0,17.55103444]
[1688405407326,6.38e-06,1967.1,1967.0,19.35598949]
[1688405409140,6.38e-06,1967.1,1967.0,15.24929473]
[1688405412917,1.76603988,1967.4,1967.0,15.24929473]
[1688405413145,4.89553203,1967.4,1967.0,15.24929473]
[1688405416821,1.76603988,1967.4,1967.0,15.24929473]
[1688405417029,2.644,1967.5,1967.1,5.034]
[1688405417332,2.644,1967.5,1967.2,20.34377438]
[1688405417744,2.644,1967.5,1967.2,20.33323]
[1688405418145,5.20278816,1967.5,1967.2,20.33323]
[1688405418460,5.72306698,1967.5,1967.2,20.33323]
[1688405419239,5.10278816,1967.5,1967.2,20.33323]
[1688405420455,5.36335906,1967.5,1967.2,20.33323]
[1688405421619,2.55878816,1967.4,1967.2,15.24992]
[1688405422375,2.81935906,1967.4,1967.2,15.24992]
[1688405430496,0.2605709,1967.4,1967.2,15.24992]
[1688405432309,0.2605709,1967.4,1967.2,18.503366]
[1688405434966,0.2605709,1967.4,1967.2,15.24992]
[1688405444603,0.2605709,1967.4,1967.2,17.28392]
[1688405444801,0.2605709,1967.4,1967.3,2.0428176]
[1688405445042,0.2605709,1967.4,1967.3,14.74175]
[1688405445543,0.2605709,1967.4,1967.3,14.74894702]
[1688405446044,0.2605709,1967.4,1967.3,14.74175]
[1688405447340,0.2605709,1967.4,1967.3,16.98493699]
[1688405447706,0.2605709,1967.4,1967.3,16.978421]
[1688405447906,0.2605709,1967.4,1967.3,16.98413248]
[1688405448421,0.2605709,1967.4,1967.3,14.74175]
[1688405449309,0.2605709,1967.4,1967.3,14.74820229]
[1688405449755,0.2605709,1967.4,1967.3,14.74175]
[1688405458223,0.2605709,1967.4,1967.3,12.70775]
[1688405467796,0.2605709,1967.4,1967.3,13.1123805]
[1688405476804,0.2605709,1967.4,1967.3,12.70775]
[1688405480672,0.2605709,1967.4,1967.3,14.83379479]
[1688405481274,0.2605709,1967.4,1967.3,16.15851763]
[1688405481629,0.2605709,1967.4,1967.3,14.03247284]
[1688405484986,0.2605709,1967.4,1967.3,12.70775]
[1688405500091,2.81935906,1967.4,1967.3,12.70775]
[1688405504787,2.81935906,1967.4,1967.3,10.1662]
[1688405504994,2.81935906,1967.4,1967.2,0.39711732]
[1688405504995,4.10935906,1967.4,1967.2,5.08318]
[1688405505288,2.96972407,1967.3,1967.2,10.16654]
[1688405505656,3.23029497,1967.3,1967.2,12.70822]
[1688405507098,4.52729497,1967.3,1967.2,5.08318]
[1688405507293,4.52729497,1967.3,1967.2,10.16654]
[1688405507468,4.52729497,1967.3,1967.2,5.08318]
[1688405507886,9.61039497,1967.3,1967.2,5.08318]
[1688405508086,14.69349497,1967.3,1967.1,5.0834]
[1688405508292,7.3373995,1967.2,1967.1,5.0834]
[1688405508493,9.89618766,1967.2,1967.1,5.0834]
[1688405508691,0.00548424,1967.1,1967.0,10.16766]
[1688405508999,2.55878816,1967.1,1967.0,10.16766]
[1688405509187,3.85285402,1967.1,1967.0,10.16766]
[1688405509591,4.11342492,1967.1,1967.0,10.16766]
[1688405510102,10.49404492,1967.1,1966.5,2.034]
[1688405510311,2.57554926,1967.0,1966.6,5.08481]
[1688405510476,12.71047,1966.9,1966.6,5.0848]